[Event "*** Titled Tuesday Blitz"]
[Site "Chess.com"]
[Date "2020.03.03"]
[Round "7"]
[White "FedaMaster"]
[Black "Berardino"]
[Result "0-1"]
[WhiteElo "2422"]
[BlackElo "2636"]
[TimeControl "180+1"]
[EndTime "10:13:37 PST"]
[Termination "Berardino won on time"]

1. e4 {[%clk 0:03:00.9]} 1... c5 {[%clk 0:02:59.2]} 2. d4 {[%clk 0:03:00.4]}
2... cxd4 {[%clk 0:02:58.5]} 3. c3 {[%clk 0:03:01.3]} 3... Nf6 {[%clk
0:02:55.1]} 4. e5 {[%clk 0:03:01.2]} 4... Nd5 {[%clk 0:02:54.6]} 5. Qxd4 {[%clk
0:03:02.1]} 5... e6 {[%clk 0:02:54.4]} 6. Nf3 {[%clk 0:03:03]} 6... Nc6 {[%clk
0:02:54.5]} 7. Qe4 {[%clk 0:03:03.9]} 7... f5 {[%clk 0:02:54.5]} 8. Qe2 {[%clk
0:03:04]} 8... b5 {[%clk 0:02:54.7]} 9. g3 {[%clk 0:03:04]} 9... a5 {[%clk
0:02:54.6]} 10. Bg2 {[%clk 0:03:04.9]} 10... Ba6 {[%clk 0:02:54.8]} 11. O-O
{[%clk 0:03:05.8]} 11... b4 {[%clk 0:02:53.1]} 12. c4 {[%clk 0:03:06.1]} 12...
Be7 {[%clk 0:02:50.8]} 13. a4 {[%clk 0:03:01.5]} 13... O-O {[%clk 0:02:45.8]}
14. b3 {[%clk 0:03:01.7]} 14... Rb8 {[%clk 0:02:39.8]} 15. Rd1 {[%clk
0:02:59.4]} 15... Nc3 {[%clk 0:02:39.3]} 16. Nxc3 {[%clk 0:02:57.8]} 16... bxc3
{[%clk 0:02:40.2]} 17. Qc2 {[%clk 0:02:51.7]} 17... Qc7 {[%clk 0:02:19.6]} 18.
Qxc3 {[%clk 0:02:49.2]} 18... Bb4 {[%clk 0:02:19.5]} 19. Qb2 {[%clk 0:02:32.4]}
19... Bc5 {[%clk 0:02:11.1]} 20. Qc2 {[%clk 0:02:28]} 20... Bb7 {[%clk
0:01:55.6]} 21. Bb2 {[%clk 0:02:14.1]} 21... Nb4 {[%clk 0:01:51.7]} 22. Qe2
{[%clk 0:02:13.8]} 22... Be4 {[%clk 0:01:48.5]} 23. Rd2 {[%clk 0:02:06.1]} 23...
h6 {[%clk 0:01:37.4]} 24. Rad1 {[%clk 0:02:04.1]} 24... Rf7 {[%clk 0:01:36.9]}
25. Nh4 {[%clk 0:01:58.1]} 25... Bxg2 {[%clk 0:01:36.2]} 26. Nxg2 {[%clk
0:01:58.4]} 26... Nc6 {[%clk 0:01:30.7]} 27. Rd3 {[%clk 0:01:43.8]} 27... Rb7
{[%clk 0:01:18.2]} 28. Nf4 {[%clk 0:01:32.8]} 28... Qb8 {[%clk 0:01:13.5]} 29.
Qf3 {[%clk 0:01:16.8]} 29... Ra7 {[%clk 0:00:51.1]} 30. Nxe6 {[%clk 0:00:56.4]}
30... Bb4 {[%clk 0:00:16.4]} 31. Qxc6 {[%clk 0:00:06.8]} 31... dxc6 {[%clk
0:00:14.9]} 32. Rd8+ {[%clk 0:00:07.7]} 32... Qxd8 {[%clk 0:00:14]} 33. Rxd8+
{[%clk 0:00:04.6]} 33... Kh7 {[%clk 0:00:14.1]} 34. Nd4 {[%clk 0:00:05.2]} 34...
Rac7 {[%clk 0:00:09.6]} 35. e6 {[%clk 0:00:03.2]} 35... Rfe7 {[%clk 0:00:09.9]}
0-1

[Event "*** Titled Tuesday Blitz"]
[Site "Chess.com"]
[Date "2020.03.03"]
[Round "7"]
[White "SantoBlue"]
[Black "TST2014"]
[Result "1-0"]
[WhiteElo "2759"]
[BlackElo "2586"]
[TimeControl "180+1"]
[EndTime "10:13:39 PST"]
[Termination "SantoBlue won on time"]

1. e4 {[%clk 0:02:29.7]} 1... c5 {[%clk 0:02:58.5]} 2. Nf3 {[%clk 0:02:21.6]}
2... Nc6 {[%clk 0:02:58.2]} 3. g3 {[%clk 0:02:18]} 3... Nf6 {[%clk 0:02:56.5]}
4. d3 {[%clk 0:02:16.8]} 4... d5 {[%clk 0:02:55.8]} 5. Nbd2 {[%clk 0:02:16.1]}
5... g6 {[%clk 0:02:51.2]} 6. Bg2 {[%clk 0:02:16]} 6... Bg7 {[%clk 0:02:51.3]}
7. O-O {[%clk 0:02:16.3]} 7... O-O {[%clk 0:02:50.9]} 8. Kh1 {[%clk 0:02:16.8]}
8... e5 {[%clk 0:02:49.8]} 9. exd5 {[%clk 0:02:13.2]} 9... Nxd5 {[%clk
0:02:49.2]} 10. Nc4 {[%clk 0:02:13.7]} 10... h6 {[%clk 0:02:34]} 11. Re1 {[%clk
0:02:13]} 11... Re8 {[%clk 0:02:33.5]} 12. a4 {[%clk 0:02:10.4]} 12... Bg4
{[%clk 0:02:30.8]} 13. h3 {[%clk 0:02:09.3]} 13... Bf5 {[%clk 0:02:15.5]} 14.
Bd2 {[%clk 0:02:06.6]} 14... e4 {[%clk 0:02:09.2]} 15. dxe4 {[%clk 0:02:05.8]}
15... Bxe4 {[%clk 0:02:09]} 16. Qc1 {[%clk 0:02:06.2]} 16... Nd4 {[%clk
0:01:57.4]} 17. Nxd4 {[%clk 0:01:56.3]} 17... Bxg2+ {[%clk 0:01:54.6]} 18. Kxg2
{[%clk 0:01:57.2]} 18... Rxe1 {[%clk 0:01:52.7]} 19. Qxe1 {[%clk 0:01:58.1]}
19... cxd4 {[%clk 0:01:49.9]} 20. Qe4 {[%clk 0:01:54.9]} 20... Rc8 {[%clk
0:01:47.8]} 21. Qd3 {[%clk 0:01:47.9]} 21... Qc7 {[%clk 0:01:44.3]} 22. b3
{[%clk 0:01:47.7]} 22... Qc6 {[%clk 0:01:44.1]} 23. Kg1 {[%clk 0:01:46.7]} 23...
a6 {[%clk 0:01:37.4]} 24. a5 {[%clk 0:01:45.9]} 24... Qe6 {[%clk 0:01:31.4]} 25.
Qf3 {[%clk 0:01:39.4]} 25... Qc6 {[%clk 0:01:15.9]} 26. Re1 {[%clk 0:01:37.3]}
26... Nc3 {[%clk 0:01:15.4]} 27. Qxc6 {[%clk 0:01:33.6]} 27... Rxc6 {[%clk
0:01:15.2]} 28. Re8+ {[%clk 0:01:32.3]} 28... Kh7 {[%clk 0:01:14.4]} 29. Re7
{[%clk 0:01:28.5]} 29... Nb1 {[%clk 0:00:32.8]} 30. Bb4 {[%clk 0:01:25.2]} 30...
Kg8 {[%clk 0:00:18]} 31. Rxb7 {[%clk 0:01:23.8]} 31... Re6 {[%clk 0:00:18.3]}
32. Kf1 {[%clk 0:01:22.7]} 32... h5 {[%clk 0:00:07]} 33. h4 {[%clk 0:01:21.4]}
33... Bh6 {[%clk 0:00:06.6]} 34. Rb8+ {[%clk 0:01:20]} 34... Kh7 {[%clk
0:00:05.2]} 35. Rb6 {[%clk 0:01:20.4]} 35... Kg8 {[%clk 0:00:03.9]} 36. Rxe6
{[%clk 0:01:18.8]} 36... fxe6 {[%clk 0:00:04.1]} 37. Ke2 {[%clk 0:01:19.5]}
37... Kf7 {[%clk 0:00:03.5]} 38. Nd6+ {[%clk 0:01:18.4]} 38... Kf6 {[%clk
0:00:02.7]} 39. Ne4+ {[%clk 0:01:19.3]} 39... Ke5 {[%clk 0:00:02.9]} 40. Nc5
{[%clk 0:01:20.2]} 40... Kd5 {[%clk 0:00:01.7]} 41. Nxa6 {[%clk 0:01:19.1]}
41... e5 {[%clk 0:00:02.2]} 42. Nc5 {[%clk 0:01:18]} 42... Bf8 {[%clk
0:00:02.1]} 43. a6 {[%clk 0:01:17.9]} 43... Bxc5 {[%clk 0:00:02.3]} 44. Bxc5
{[%clk 0:01:17.2]} 44... Nc3+ {[%clk 0:00:02.8]} 45. Ke1 {[%clk 0:01:17.4]}
45... Kc6 {[%clk 0:00:02.3]} 46. a7 {[%clk 0:01:17.4]} 46... Kb7 {[%clk
0:00:02.6]} 47. b4 {[%clk 0:01:17.7]} 47... Ne4 {[%clk 0:00:01.7]} 48. Ke2
{[%clk 0:01:17.8]} 48... Nxc5 {[%clk 0:00:02]} 49. bxc5 {[%clk 0:01:18.7]} 49...
Kxa7 {[%clk 0:00:02.9]} 50. Kd3 {[%clk 0:01:19.2]} 50... Kb7 {[%clk 0:00:03.3]}
51. Ke4 {[%clk 0:01:19.5]} 51... Kc6 {[%clk 0:00:04.2]} 52. Kxe5 {[%clk
0:01:20]} 52... Kxc5 {[%clk 0:00:03.2]} 53. f3 {[%clk 0:01:20.4]} 53... Kc4
{[%clk 0:00:03.3]} 54. Ke4 {[%clk 0:01:20.9]} 54... Kc3 {[%clk 0:00:03.2]} 55.
g4 {[%clk 0:01:21.3]} 55... Kxc2 {[%clk 0:00:01.7]} 56. Kxd4 {[%clk 0:01:21.6]}
56... hxg4 {[%clk 0:00:01.8]} 57. fxg4 {[%clk 0:01:22.5]} 1-0

[Event "*** Titled Tuesday Blitz"]
[Site "Chess.com"]
[Date "2020.03.03"]
[Round "7"]
[White "VerdeNotte"]
[Black "doons21"]
[Result "1-0"]
[WhiteElo "2802"]
[BlackElo "2592"]
[TimeControl "180+1"]
[EndTime "10:13:41 PST"]
[Termination "VerdeNotte won on time"]

1. Nf3 {[%clk 0:03:00.9]} 1... Nf6 {[%clk 0:02:59.9]} 2. b3 {[%clk 0:03:00.8]}
2... g6 {[%clk 0:02:58.3]} 3. Bb2 {[%clk 0:03:01.3]} 3... Bg7 {[%clk 0:02:58.9]}
4. g3 {[%clk 0:03:00.1]} 4... b6 {[%clk 0:02:56.3]} 5. c4 {[%clk 0:02:59.5]}
5... Bb7 {[%clk 0:02:56.3]} 6. Bg2 {[%clk 0:03:00.1]} 6... O-O {[%clk 0:02:56]}
7. O-O {[%clk 0:03:00.4]} 7... a5 {[%clk 0:02:52.5]} 8. d3 {[%clk 0:02:58.6]}
8... a4 {[%clk 0:02:52.3]} 9. bxa4 {[%clk 0:02:57.8]} 9... Nc6 {[%clk
0:02:52.2]} 10. Ne5 {[%clk 0:02:54.5]} 10... Ng4 {[%clk 0:02:43]} 11. Nxc6
{[%clk 0:02:52.3]} 11... Bxc6 {[%clk 0:02:43.5]} 12. Bxg7 {[%clk 0:02:52]} 12...
Kxg7 {[%clk 0:02:43.2]} 13. Bxc6 {[%clk 0:02:51.2]} 13... dxc6 {[%clk
0:02:42.1]} 14. Nd2 {[%clk 0:02:45.4]} 14... Ra5 {[%clk 0:02:00.6]} 15. e3
{[%clk 0:02:34.7]} 15... h5 {[%clk 0:01:54.2]} 16. d4 {[%clk 0:02:34]} 16... Qa8
{[%clk 0:01:46.5]} 17. h3 {[%clk 0:02:26.4]} 17... Nh6 {[%clk 0:01:37.7]} 18.
Qc2 {[%clk 0:02:19.2]} 18... Nf5 {[%clk 0:01:31.8]} 19. c5 {[%clk 0:02:16.1]}
19... Rxa4 {[%clk 0:01:30.3]} 20. Ne4 {[%clk 0:02:13.2]} 20... b5 {[%clk
0:01:24.4]} 21. g4 {[%clk 0:02:09.1]} 21... hxg4 {[%clk 0:01:23.6]} 22. hxg4
{[%clk 0:02:09.2]} 22... Nh4 {[%clk 0:01:16.7]} 23. f3 {[%clk 0:02:09.2]} 23...
Rh8 {[%clk 0:01:09.2]} 24. Kf2 {[%clk 0:02:06.1]} 24... Rc4 {[%clk 0:00:53.4]}
25. Qb2 {[%clk 0:01:57.8]} 25... Qa4 {[%clk 0:00:50.3]} 26. Rac1 {[%clk
0:01:52]} 26... Nf5 {[%clk 0:00:46.6]} 27. Qb3 {[%clk 0:01:35.1]} 27... Nh6
{[%clk 0:00:12.7]} 28. Rxc4 {[%clk 0:01:33]} 28... Qxc4 {[%clk 0:00:13.6]} 29.
Qxc4 {[%clk 0:01:32.8]} 29... bxc4 {[%clk 0:00:14.5]} 30. Nc3 {[%clk 0:01:21.7]}
30... Ra8 {[%clk 0:00:13.1]} 31. a4 {[%clk 0:01:21.5]} 31... f5 {[%clk
0:00:11.8]} 32. g5 {[%clk 0:01:20.3]} 32... Nf7 {[%clk 0:00:12.2]} 33. f4 {[%clk
0:01:20.3]} 33... Nd8 {[%clk 0:00:13]} 34. Ra1 {[%clk 0:01:19.6]} 34... Kf7
{[%clk 0:00:12.6]} 35. Ke2 {[%clk 0:01:13.4]} 35... Ke6 {[%clk 0:00:13.5]} 36.
Kd2 {[%clk 0:01:11.9]} 36... Nb7 {[%clk 0:00:14]} 37. Rh1 {[%clk 0:01:04.7]}
37... Na5 {[%clk 0:00:14.9]} 38. Rh7 {[%clk 0:01:03.8]} 38... Rg8 {[%clk
0:00:13.8]} 39. Kc2 {[%clk 0:00:59.8]} 39... Kd7 {[%clk 0:00:13.9]} 40. Nd1
{[%clk 0:00:57.2]} 40... Ke6 {[%clk 0:00:11.5]} 41. Kc3 {[%clk 0:00:54.2]} 41...
Kd5 {[%clk 0:00:10.7]} 42. Kb4 {[%clk 0:00:54.4]} 42... Ke4 {[%clk 0:00:03.9]}
43. Rxe7+ {[%clk 0:00:53.7]} 43... Kd3 {[%clk 0:00:04.1]} 44. Kxa5 {[%clk
0:00:54.1]} 44... c3 {[%clk 0:00:02.1]} 45. Nxc3 {[%clk 0:00:53.8]} 45... Kxc3
{[%clk 0:00:02.4]} 46. Rxc7 {[%clk 0:00:53.8]} 46... Ra8+ {[%clk 0:00:02.8]} 47.
Kb6 {[%clk 0:00:53.8]} 47... Rxa4 {[%clk 0:00:02.9]} 48. Rxc6 {[%clk 0:00:54.2]}
48... Kd3 {[%clk 0:00:03.8]} 49. Re6 {[%clk 0:00:54.1]} 49... Kc4 {[%clk
0:00:03.7]} 50. Re5 {[%clk 0:00:50.8]} 50... Rb4+ {[%clk 0:00:04.6]} 51. Kc7
{[%clk 0:00:50.3]} 51... Kb5 {[%clk 0:00:01.1]} 52. c6+ {[%clk 0:00:50.4]} 52...
Ka6 {[%clk 0:00:01.5]} 53. Kd7 {[%clk 0:00:49.3]} 1-0

[Event "*** Titled Tuesday Blitz"]
[Site "Chess.com"]
[Date "2020.03.03"]
[Round "7"]
[White "Indianlad"]
[Black "artooon"]
[Result "1-0"]
[WhiteElo "2949"]
[BlackElo "2757"]
[TimeControl "180+1"]
[EndTime "10:13:44 PST"]
[Termination "Indianlad won by resignation"]

1. c4 {[%clk 0:03:00.9]} 1... Nf6 {[%clk 0:02:59.7]} 2. Nc3 {[%clk 0:03:01.2]}
2... e6 {[%clk 0:03:00.1]} 3. e4 {[%clk 0:02:58.7]} 3... d5 {[%clk 0:03:00.4]}
4. e5 {[%clk 0:02:59]} 4... d4 {[%clk 0:02:59.4]} 5. exf6 {[%clk 0:02:59.5]}
5... dxc3 {[%clk 0:02:59.9]} 6. bxc3 {[%clk 0:02:59.9]} 6... Qxf6 {[%clk
0:03:00.4]} 7. d4 {[%clk 0:03:00.4]} 7... b6 {[%clk 0:02:59.4]} 8. Nf3 {[%clk
0:02:47.4]} 8... h6 {[%clk 0:02:59.3]} 9. Bd3 {[%clk 0:02:33.5]} 9... Bb7 {[%clk
0:02:59.4]} 10. Qe2 {[%clk 0:02:34.2]} 10... Nd7 {[%clk 0:02:57.8]} 11. Be4
{[%clk 0:02:34]} 11... Bxe4 {[%clk 0:02:58.2]} 12. Qxe4 {[%clk 0:02:34.9]} 12...
Rd8 {[%clk 0:02:57.7]} 13. a4 {[%clk 0:02:34.4]} 13... Bd6 {[%clk 0:02:56.8]}
14. a5 {[%clk 0:02:34]} 14... O-O {[%clk 0:02:56.1]} 15. O-O {[%clk 0:02:34.5]}
15... e5 {[%clk 0:02:52.7]} 16. Ba3 {[%clk 0:02:15.1]} 16... Rfe8 {[%clk
0:02:44.6]} 17. Bxd6 {[%clk 0:02:13.9]} 17... Qxd6 {[%clk 0:02:42.3]} 18. Rfe1
{[%clk 0:02:12]} 18... Nf6 {[%clk 0:02:37]} 19. Qb7 {[%clk 0:01:52.7]} 19...
exd4 {[%clk 0:02:36.5]} 20. cxd4 {[%clk 0:01:51.7]} 20... bxa5 {[%clk 0:02:05]}
21. c5 {[%clk 0:01:51.1]} 21... Qd7 {[%clk 0:01:58.6]} 22. Rxe8+ {[%clk
0:01:46.3]} 22... Rxe8 {[%clk 0:01:59.5]} 23. Rxa5 {[%clk 0:01:37.3]} 23... Qxd4
{[%clk 0:01:47.6]} 24. g3 {[%clk 0:01:31]} 24... Qd1+ {[%clk 0:01:35.6]} 25. Kg2
{[%clk 0:01:30.2]} 25... Nd5 {[%clk 0:01:03.2]} 26. Rxa7 {[%clk 0:01:09.1]}
26... g5 {[%clk 0:01:02.4]} 27. Qb2 {[%clk 0:00:47.4]} 27... f6 {[%clk
0:00:35.3]} 28. Ra1 {[%clk 0:00:45.5]} 28... Qd3 {[%clk 0:00:28.3]} 29. Ra3
{[%clk 0:00:25.2]} 29... Qe4 {[%clk 0:00:28.3]} 30. h3 {[%clk 0:00:24.2]} 30...
h5 {[%clk 0:00:27.6]} 31. Kh2 {[%clk 0:00:24.1]} 31... g4 {[%clk 0:00:27.3]} 32.
hxg4 {[%clk 0:00:24.3]} 32... hxg4 {[%clk 0:00:28.2]} 33. Nh4 {[%clk 0:00:24.7]}
33... Qe1 {[%clk 0:00:25.2]} 34. Qd4 {[%clk 0:00:24]} 34... Re5 {[%clk 0:00:19]}
35. Qxg4+ {[%clk 0:00:23.7]} 35... Kf7 {[%clk 0:00:19.4]} 36. Qg6+ {[%clk
0:00:22.8]} 36... Ke6 {[%clk 0:00:18.8]} 37. Rf3 {[%clk 0:00:23.1]} 37... Kd7
{[%clk 0:00:07.4]} 38. Qd3 {[%clk 0:00:17.8]} 38... Qe2 {[%clk 0:00:05.9]} 39.
Qb3 {[%clk 0:00:14.3]} 39... Ke6 {[%clk 0:00:04.8]} 40. Kg2 {[%clk 0:00:13.5]}
40... Qe1 {[%clk 0:00:04.5]} 41. Ng6 {[%clk 0:00:13.6]} 41... Re2 {[%clk
0:00:03.1]} 42. Nf4+ {[%clk 0:00:13.7]} 1-0

[Event "*** Titled Tuesday Blitz"]
[Site "Chess.com"]
[Date "2020.03.03"]
[Round "7"]
[White "Ginger_GM"]
[Black "kleinebeer98"]
[Result "0-1"]
[WhiteElo "2577"]
[BlackElo "2717"]
[TimeControl "180+1"]
[EndTime "10:13:44 PST"]
[Termination "kleinebeer98 won by resignation"]

1. e4 {[%clk 0:03:00.9]} 1... e5 {[%clk 0:02:48.6]} 2. f4 {[%clk 0:02:57.5]}
2... d5 {[%clk 0:02:48.2]} 3. exd5 {[%clk 0:02:56.8]} 3... exf4 {[%clk
0:02:47.4]} 4. Nf3 {[%clk 0:02:55.7]} 4... Nf6 {[%clk 0:02:47]} 5. Bc4 {[%clk
0:02:55.1]} 5... Bg4 {[%clk 0:02:39]} 6. Nc3 {[%clk 0:02:51]} 6... Bd6 {[%clk
0:02:33.6]} 7. O-O {[%clk 0:02:48.8]} 7... O-O {[%clk 0:02:32.3]} 8. d4 {[%clk
0:02:48.4]} 8... Re8 {[%clk 0:02:30.1]} 9. Qd3 {[%clk 0:02:40.7]} 9... Nbd7
{[%clk 0:02:24.4]} 10. Bb3 {[%clk 0:02:36.6]} 10... a6 {[%clk 0:02:14.7]} 11. a4
{[%clk 0:02:33.8]} 11... Nf8 {[%clk 0:02:13.9]} 12. Ne5 {[%clk 0:02:31.1]} 12...
Bxe5 {[%clk 0:01:57.4]} 13. dxe5 {[%clk 0:02:31.1]} 13... Rxe5 {[%clk
0:01:58.3]} 14. Bxf4 {[%clk 0:02:31.2]} 14... Rh5 {[%clk 0:01:44.9]} 15. d6
{[%clk 0:02:11.4]} 15... cxd6 {[%clk 0:01:39.2]} 16. Qxd6 {[%clk 0:01:35.6]}
16... Be6 {[%clk 0:01:26.4]} 17. Bxe6 {[%clk 0:01:14.3]} 17... Nxe6 {[%clk
0:01:27.3]} 18. Rad1 {[%clk 0:01:10.2]} 18... Qe8 {[%clk 0:01:08.5]} 19. Qb6
{[%clk 0:00:58.1]} 19... Nxf4 {[%clk 0:00:50.7]} 20. Rxf4 {[%clk 0:00:59]} 20...
h6 {[%clk 0:00:44.6]} 21. Rff1 {[%clk 0:00:42]} 21... Ng4 {[%clk 0:00:26.1]} 22.
Rfe1 {[%clk 0:00:38.2]} 22... Qb8 {[%clk 0:00:19.1]} 23. Qd6 {[%clk 0:00:29.3]}
23... Qxd6 {[%clk 0:00:17.2]} 24. Rxd6 {[%clk 0:00:29.3]} 24... Nxh2 {[%clk
0:00:18.1]} 25. Rd7 {[%clk 0:00:28.2]} 25... Ng4 {[%clk 0:00:14.2]} 26. Rxb7
{[%clk 0:00:24.9]} 26... Rd8 {[%clk 0:00:14.4]} 27. Ne4 {[%clk 0:00:19.4]} 27...
Re5 {[%clk 0:00:14.1]} 28. Kf1 {[%clk 0:00:14.7]} 28... Rde8 {[%clk 0:00:12.9]}
29. Rb6 {[%clk 0:00:08.1]} 29... f5 {[%clk 0:00:10.1]} 30. Nf6+ {[%clk
0:00:06.4]} 30... gxf6 {[%clk 0:00:09.4]} 31. Rxe5 {[%clk 0:00:06.5]} 31... fxe5
{[%clk 0:00:10.3]} 32. Rxa6 {[%clk 0:00:07.1]} 32... Ne3+ {[%clk 0:00:09.6]} 33.
Kf2 {[%clk 0:00:07]} 33... Nxc2 {[%clk 0:00:09.2]} 34. Rxh6 {[%clk 0:00:07]}
34... e4 {[%clk 0:00:08.7]} 35. Rh5 {[%clk 0:00:06.1]} 35... e3+ {[%clk
0:00:08.5]} 36. Kg3 {[%clk 0:00:02.4]} 36... e2 {[%clk 0:00:08]} 0-1

[Event "*** Titled Tuesday Blitz"]
[Site "Chess.com"]
[Date "2020.03.03"]
[Round "7"]
[White "norwaytoadog"]
[Black "Chessmatus"]
[Result "1-0"]
[WhiteElo "2257"]
[BlackElo "2367"]
[TimeControl "180+1"]
[EndTime "10:13:48 PST"]
[Termination "norwaytoadog won by checkmate"]

1. e4 {[%clk 0:02:25.6]} 1... c5 {[%clk 0:02:59.3]} 2. Nf3 {[%clk 0:02:25.6]}
2... d6 {[%clk 0:02:59.6]} 3. Bb5+ {[%clk 0:02:25.4]} 3... Nc6 {[%clk
0:02:58.6]} 4. Bxc6+ {[%clk 0:02:24.2]} 4... bxc6 {[%clk 0:02:58.2]} 5. O-O
{[%clk 0:02:24.3]} 5... Bg4 {[%clk 0:02:58.6]} 6. h3 {[%clk 0:02:24]} 6... Bh5
{[%clk 0:02:58.8]} 7. g4 {[%clk 0:02:23.8]} 7... Bg6 {[%clk 0:02:58.2]} 8. e5
{[%clk 0:02:21.2]} 8... e6 {[%clk 0:02:57.5]} 9. exd6 {[%clk 0:02:18.9]} 9...
Bxd6 {[%clk 0:02:57.1]} 10. d4 {[%clk 0:02:13.3]} 10... Qc7 {[%clk 0:02:49.5]}
11. Re1 {[%clk 0:02:08.4]} 11... Ne7 {[%clk 0:02:47.1]} 12. Nc3 {[%clk
0:01:40.9]} 12... cxd4 {[%clk 0:02:26.2]} 13. Qxd4 {[%clk 0:01:37.8]} 13... Rd8
{[%clk 0:02:25.7]} 14. Qxg7 {[%clk 0:01:32.7]} 14... Rg8 {[%clk 0:02:25.8]} 15.
Qh6 {[%clk 0:01:24.5]} 15... Nd5 {[%clk 0:02:12.5]} 16. Nxd5 {[%clk 0:01:16.1]}
16... cxd5 {[%clk 0:02:12.3]} 17. Bg5 {[%clk 0:01:06.4]} 17... Bc5 {[%clk
0:02:10.3]} 18. Ne5 {[%clk 0:00:55.4]} 18... Rb8 {[%clk 0:02:06.8]} 19. Rab1
{[%clk 0:00:36.5]} 19... Bxc2 {[%clk 0:01:35.1]} 20. Rbc1 {[%clk 0:00:33.1]}
20... Rxb2 {[%clk 0:01:34.9]} 21. Be3 {[%clk 0:00:24.6]} 21... Bb4 {[%clk
0:01:12.3]} 22. Re2 {[%clk 0:00:20.5]} 22... Qxe5 {[%clk 0:01:10.5]} 23. Rexc2
{[%clk 0:00:17.3]} 23... Rxc2 {[%clk 0:01:09.2]} 24. Rxc2 {[%clk 0:00:17.4]}
24... Kd7 {[%clk 0:01:02.3]} 25. Bf4 {[%clk 0:00:14.6]} 25... Qe1+ {[%clk
0:01:01.6]} 26. Kh2 {[%clk 0:00:13.7]} 26... Rc8 {[%clk 0:00:57.7]} 27. Rxc8
{[%clk 0:00:12.2]} 27... Qxf2+ {[%clk 0:00:57.8]} 28. Kh1 {[%clk 0:00:12.2]}
28... Qf3+ {[%clk 0:00:56.7]} 29. Kh2 {[%clk 0:00:11.3]} 29... Kxc8 {[%clk
0:00:56]} 30. Qg5 {[%clk 0:00:09.9]} 30... Kd7 {[%clk 0:00:54.6]} 31. Qe5 {[%clk
0:00:09.6]} 31... Qc3 {[%clk 0:00:52.6]} 32. Qb8 {[%clk 0:00:07.3]} 32... Qc2+
{[%clk 0:00:47.9]} 33. Kh1 {[%clk 0:00:07.6]} 33... Qc1+ {[%clk 0:00:37.7]} 34.
Kh2 {[%clk 0:00:08]} 34... Qc6 {[%clk 0:00:35.7]} 35. Qxa7+ {[%clk 0:00:07.4]}
35... Kd8 {[%clk 0:00:32.2]} 36. Qb8+ {[%clk 0:00:07.6]} 36... Qc8 {[%clk
0:00:32.7]} 37. Qxb4 {[%clk 0:00:07.5]} 37... Qc2+ {[%clk 0:00:32.6]} 38. Kg3
{[%clk 0:00:07.6]} 38... Qd3+ {[%clk 0:00:31.8]} 39. Kh4 {[%clk 0:00:07.8]}
39... Ke8 {[%clk 0:00:30.2]} 40. Qb8+ {[%clk 0:00:07.6]} 40... Ke7 {[%clk
0:00:30.4]} 41. Bg5+ {[%clk 0:00:07.1]} 41... f6 {[%clk 0:00:29.7]} 42. Qc7+
{[%clk 0:00:06.7]} 42... Kf8 {[%clk 0:00:29.4]} 43. Qd8+ {[%clk 0:00:06.8]}
43... Kf7 {[%clk 0:00:27.4]} 44. Qxf6+ {[%clk 0:00:06.4]} 44... Kg8 {[%clk
0:00:27.5]} 45. Qxe6+ {[%clk 0:00:06.2]} 45... Kg7 {[%clk 0:00:24.8]} 46. Bh6+
{[%clk 0:00:06.3]} 46... Kh8 {[%clk 0:00:25.3]} 47. Qf6+ {[%clk 0:00:06.6]}
47... Kg8 {[%clk 0:00:24.9]} 48. Qg7# {[%clk 0:00:07.1]} 1-0

[Event "*** Titled Tuesday Blitz"]
[Site "Chess.com"]
[Date "2020.03.03"]
[Round "7"]
[White "Man-Chuk"]
[Black "Oleksandr_Bortnyk"]
[Result "0-1"]
[WhiteElo "2767"]
[BlackElo "2960"]
[TimeControl "180+1"]
[EndTime "10:13:50 PST"]
[Termination "Oleksandr_Bortnyk won on time"]

1. d4 {[%clk 0:02:58]} 1... d6 {[%clk 0:03:00]} 2. Nf3 {[%clk 0:02:56.2]} 2...
Nf6 {[%clk 0:03:00.2]} 3. g3 {[%clk 0:02:54.4]} 3... g6 {[%clk 0:03:00.1]} 4.
Bg2 {[%clk 0:02:55]} 4... Bg7 {[%clk 0:03:01]} 5. O-O {[%clk 0:02:53.6]} 5...
O-O {[%clk 0:03:01.9]} 6. c4 {[%clk 0:02:53.6]} 6... Bf5 {[%clk 0:03:02.5]} 7.
Nc3 {[%clk 0:02:50.7]} 7... Ne4 {[%clk 0:03:02.7]} 8. Qb3 {[%clk 0:02:46.4]}
8... Nxc3 {[%clk 0:02:58.6]} 9. bxc3 {[%clk 0:02:40.7]} 9... Be4 {[%clk
0:02:59]} 10. a4 {[%clk 0:02:33.4]} 10... b6 {[%clk 0:02:54.4]} 11. c5 {[%clk
0:02:11]} 11... Nc6 {[%clk 0:02:34.8]} 12. cxd6 {[%clk 0:02:03.7]} 12... cxd6
{[%clk 0:02:35.7]} 13. Nd2 {[%clk 0:01:46.9]} 13... Na5 {[%clk 0:02:32.2]} 14.
Qa2 {[%clk 0:01:46.3]} 14... Bxg2 {[%clk 0:02:29.5]} 15. Kxg2 {[%clk 0:01:47.2]}
15... Rc8 {[%clk 0:02:30.4]} 16. Ba3 {[%clk 0:01:44.5]} 16... Rxc3 {[%clk
0:02:28.7]} 17. Bb4 {[%clk 0:01:44.9]} 17... Qa8+ {[%clk 0:02:17.2]} 18. Kg1
{[%clk 0:01:35.2]} 18... Rc7 {[%clk 0:02:16.5]} 19. Bxa5 {[%clk 0:01:35.7]}
19... bxa5 {[%clk 0:02:17.4]} 20. e3 {[%clk 0:01:35.8]} 20... Rfc8 {[%clk
0:02:17.1]} 21. Rab1 {[%clk 0:01:31.4]} 21... h5 {[%clk 0:02:14.3]} 22. h4
{[%clk 0:01:28.5]} 22... a6 {[%clk 0:02:10.6]} 23. Rb2 {[%clk 0:01:24.8]} 23...
Rc1 {[%clk 0:02:05.2]} 24. Qb3 {[%clk 0:01:17]} 24... Bf6 {[%clk 0:01:53.5]} 25.
Qb7 {[%clk 0:01:09.5]} 25... Rxf1+ {[%clk 0:01:23.2]} 26. Kxf1 {[%clk
0:01:01.3]} 26... Rc1+ {[%clk 0:01:22.8]} 27. Ke2 {[%clk 0:01:01.3]} 27... Qxb7
{[%clk 0:01:23.7]} 28. Rxb7 {[%clk 0:00:57.8]} 28... Ra1 {[%clk 0:01:24.6]} 29.
Ne4 {[%clk 0:00:56.1]} 29... Rxa4 {[%clk 0:01:25.5]} 30. Nxf6+ {[%clk
0:00:48.7]} 30... exf6 {[%clk 0:01:26.4]} 31. Rb6 {[%clk 0:00:45.4]} 31... Ra2+
{[%clk 0:01:21.7]} 32. Kf3 {[%clk 0:00:44]} 32... Kf8 {[%clk 0:01:16.4]} 33.
Rxd6 {[%clk 0:00:42.2]} 33... Ke7 {[%clk 0:01:17.3]} 34. Rxa6 {[%clk 0:00:42.6]}
34... a4 {[%clk 0:01:16.5]} 35. e4 {[%clk 0:00:38.4]} 35... a3 {[%clk
0:01:15.5]} 36. Ra7+ {[%clk 0:00:33.7]} 36... Ke8 {[%clk 0:01:13.5]} 37. Ke3
{[%clk 0:00:25]} 37... Ra1 {[%clk 0:01:11.8]} 38. Kf4 {[%clk 0:00:22.9]} 38...
a2 {[%clk 0:01:07.5]} 39. e5 {[%clk 0:00:21.8]} 39... g5+ {[%clk 0:00:47.5]} 40.
hxg5 {[%clk 0:00:18.6]} 40... fxg5+ {[%clk 0:00:48.4]} 41. Kxg5 {[%clk
0:00:15.9]} 41... h4 {[%clk 0:00:49.3]} 42. d5 {[%clk 0:00:09.9]} 42... h3
{[%clk 0:00:48.6]} 43. Kf6 {[%clk 0:00:08]} 43... h2 {[%clk 0:00:42.8]} 44. e6
{[%clk 0:00:08.3]} 44... fxe6 {[%clk 0:00:42.2]} 45. dxe6 {[%clk 0:00:08.5]}
45... h1=Q {[%clk 0:00:41.8]} 46. Re7+ {[%clk 0:00:01.2]} 46... Kd8 {[%clk
0:00:39.8]} 47. Rd7+ {[%clk 0:00:01.1]} 47... Kc8 {[%clk 0:00:40.2]} 0-1